bitfinex/quotes_ETHUSD_20220115
["timestamp","ask_amount","ask_price","bid_price","bid_amount"]
[1642276506844,0.01938152,3345.2,3344.8,5.5177]
[1642276507051,7.34503394,3345.3,3344.9,0.0022737]
[1642276508195,5.439,3345.3,3344.9,0.0022737]
[1642276508395,5.439,3345.3,3345.0,0.00915266]
[1642276508596,5.439,3345.3,3344.9,0.0022737]
[1642276508894,5.439,3345.3,3345.1,0.00113685]
[1642276509496,6.29161756,3345.3,3345.1,0.00113685]
[1642276509701,7.06861756,3345.3,3345.1,0.00113685]
[1642276509897,7.06861756,3345.3,3345.0,0.00170527]
[1642276512950,7.84561756,3345.3,3345.0,0.00170527]
[1642276513351,0.85261756,3345.2,3345.0,0.00170527]
[1642276516197,1.62961756,3345.2,3345.0,0.00170527]
[1642276519348,2.40661756,3345.2,3345.0,0.00170527]
[1642276519748,1.554,3345.2,3345.0,0.00170527]
[1642276520348,1.554,3345.2,3345.1,7.14711]
[1642276520748,1.554,3345.2,3345.1,7.14824685]
[1642276521849,1.554,3345.2,3345.1,9.0172028]
[1642276522048,1.554,3345.2,3345.1,7.14824685]
[1642276522500,2.331,3345.2,3345.1,8.96241401]
[1642276523294,2.331,3345.2,3345.1,7.14824685]
[1642276524497,4.88751576,3345.2,3345.1,7.14824685]
[1642276525699,5.66451576,3345.2,3345.1,7.14824685]
[1642276526846,5.66451576,3345.2,3345.1,8.96178604]
[1642276528948,6.44151576,3345.2,3345.1,8.96178604]
[1642276530899,6.44151576,3345.2,3345.1,9.07378604]
[1642276531100,6.44151576,3345.2,3345.1,9.07458604]
[1642276531398,6.44151576,3345.2,3345.1,7.26264685]
[1642276531800,6.44151576,3345.2,3345.1,7.26104685]
[1642276532002,6.44151576,3345.2,3345.1,7.26264685]
[1642276532301,7.21851576,3345.2,3345.1,9.03742325]
[1642276532502,7.21851576,3345.2,3345.1,9.03822325]
[1642276532699,7.21851576,3345.2,3345.1,9.03902325]
[1642276532904,7.21851576,3345.2,3345.1,9.03822325]
[1642276533101,7.21851576,3345.2,3345.1,9.03742325]
[1642276533562,7.21851576,3345.2,3345.1,9.03502325]
[1642276533756,7.21851576,3345.2,3345.1,0.86104685]
[1642276533956,7.21851576,3345.2,3345.1,0.00113685]
[1642276535356,7.99551576,3345.2,3345.1,0.00113685]
[1642276536562,8.11501576,3345.2,3345.1,0.00113685]
[1642276538598,8.89201576,3345.2,3345.1,0.00113685]
[1642276538798,8.77251576,3345.2,3345.1,0.00113685]
[1642276539399,8.77251576,3345.2,3345.0,0.00170527]
[1642276540004,2.55651576,3345.1,3345.0,0.00170527]
[1642276540804,2.55651576,3345.1,3345.0,6.25170527]
[1642276541647,2.55651576,3345.1,3345.0,8.09149933]
[1642276541848,3.33351576,3345.1,3345.0,8.09149933]
[1642276543050,3.33351576,3345.1,3345.0,6.25170527]
[1642276543851,0.777,3345.1,3345.0,6.25170527]
[1642276544797,3.33343615,3345.1,3345.0,0.00170527]
[1642276544998,4.11043615,3345.1,3345.0,0.00170527]
[1642276545796,4.11043615,3345.1,3345.0,4.75170527]
[1642276548199,4.88743615,3345.1,3345.0,4.75170527]
[1642276549349,4.88743615,3345.1,3345.0,6.00119906]
[1642276549948,4.88743615,3345.1,3345.0,1.25119906]
[1642276550747,4.88743615,3345.1,3345.0,3.75170527]
[1642276551448,5.66443615,3345.1,3345.0,3.75170527]
[1642276552213,7.21309632,3345.1,3345.0,3.75170527]
[1642276552801,5.66443615,3345.1,3345.0,3.75170527]
[1642276553001,5.66443615,3345.1,3345.0,4.49876527]
[1642276553202,5.66443615,3345.1,3345.0,4.61236527]
[1642276553401,5.66443615,3345.1,3345.0,6.39853911]
[1642276553806,5.66443615,3345.1,3345.0,6.39933911]
[1642276554500,5.66443615,3345.1,3345.0,6.40173911]
[1642276554703,6.44143615,3345.1,3345.0,6.40013911]
[1642276554903,6.44143615,3345.1,3345.0,6.40093911]
[1642276555102,5.9300822,3345.1,3345.0,3.84922168]
[1642276555305,5.9300822,3345.1,3345.0,3.73402168]
[1642276555705,5.9300822,3345.1,3345.0,3.84922168]
[1642276555949,5.9300822,3345.1,3345.0,3.85242168]
[1642276556548,5.9300822,3345.1,3345.0,3.85322168]
[1642276556748,5.9300822,3345.1,3345.0,3.85402168]
[1642276556949,5.9300822,3345.1,3345.0,3.85482168]
[1642276557449,5.9300822,3345.1,3345.0,3.85402168]
[1642276557747,5.9300822,3345.1,3345.0,3.85482168]
[1642276557951,6.7070822,3345.1,3345.0,3.85482168]
[1642276558150,6.7070822,3345.1,3345.0,3.85562168]
[1642276558349,6.7070822,3345.1,3345.0,3.85642168]
[1642276558550,6.7070822,3345.1,3345.0,3.85562168]
[1642276558750,0.7312522,3345.1,3345.0,3.86568068]
[1642276558956,6.9472522,3345.3,3345.1,16.2]
[1642276559156,4.662,3345.4,3345.3,16.7]
[1642276559351,4.662,3345.4,3345.3,18.188358]
[1642276559550,4.662,3345.4,3345.3,18.333158]
[1642276559801,0.1195,3345.9,3345.4,0.74683]
[1642276560002,0.1195,3345.9,3345.5,0.440642]
[1642276560204,0.1195,3345.9,3345.6,9.0]
[1642276560399,0.1195,3345.9,3345.7,0.429]
[1642276560601,0.00113685,3345.8,3345.7,8.0038]
[1642276560801,2.27695098,3346.2,3345.7,7.879]
[1642276561000,2.27695098,3346.2,3345.8,0.74684]
[1642276561200,3.85086251,3346.0,3345.8,1.29424]
[1642276561399,3.85086251,3346.0,3345.9,0.112]
[1642276561606,3.85086251,3346.0,3345.9,2.70278456]
[1642276561802,3.85199935,3346.0,3345.9,2.81798456]
[1642276562004,3.85199935,3346.0,3345.9,2.70278456]
[1642276562702,3.85199935,3346.0,3345.9,2.81478456]
[1642276562901,3.85199935,3346.0,3345.9,2.70278456]
[1642276563749,3.85199935,3346.0,3345.9,1.22803363]
[1642276564353,4.62899935,3346.0,3345.9,1.22803363]
[1642276565854,0.02395441,3345.9,3345.5,0.011642]
[1642276566251,0.02395441,3345.9,3345.6,0.00113685]
[1642276566552,0.14345441,3345.9,3345.6,0.00113685]
[1642276567216,0.1195,3345.9,3345.6,0.00113685]
[1642276567605,0.02727897,3345.8,3345.6,0.00113685]
[1642276567806,0.02727897,3345.8,3345.7,1.29196059]
[1642276568005,0.8965,3345.9,3345.6,0.00113685]
[1642276568408,0.8965,3345.9,3345.6,0.01043085]
[1642276568605,0.8965,3345.9,3345.6,0.00113685]
[1642276569412,0.1195,3345.8,3345.6,0.00113685]
[1642276569612,1.39695888,3345.7,3345.6,0.00113685]
[1642276570610,0.1195,3345.8,3345.6,0.00113685]
[1642276570811,0.8965,3345.8,3345.6,0.00113685]
[1642276571658,2.74600859,3345.8,3345.6,0.00113685]
[1642276571858,2.62650859,3345.8,3345.6,0.00113685]
[1642276572063,1.87771482,3345.7,3345.6,0.00113685]
[1642276572259,1.99721482,3345.7,3345.6,0.00113685]
[1642276572463,9.64721482,3345.7,3345.6,0.00113685]
[1642276572661,9.64721482,3345.7,3345.4,0.0022737]
[1642276572859,0.12953749,3345.6,3345.3,0.00284212]
[1642276573260,1.56311348,3345.4,3345.3,0.00284212]
[1642276573459,3.64605505,3345.4,3345.3,0.00284212]
[1642276573659,2.08294157,3345.4,3345.3,0.00284212]
[1642276573860,2.2974661,3345.6,3345.2,0.00341055]
[1642276574062,0.777,3345.4,3345.2,0.00341055]
[1642276577101,0.777,3345.4,3345.3,1.16219741]
[1642276577308,1.554,3345.4,3345.3,1.16219741]
[1642276577604,1.554,3345.4,3345.3,1.16503953]
[1642276578002,1.554,3345.4,3345.3,2.40258331]
[1642276579453,1.554,3345.4,3345.3,1.16503953]
[1642276580451,2.331,3345.4,3345.3,1.16503953]
[1642276580853,4.88746313,3345.4,3345.3,1.16503953]
[1642276581452,2.331,3345.4,3345.3,1.16503953]
[1642276582053,4.88746313,3345.4,3345.3,1.16503953]
[1642276582508,2.331,3345.4,3345.3,1.16503953]
[1642276583603,3.108,3345.4,3345.3,1.16503953]
[1642276584004,5.66446313,3345.4,3345.3,1.16503953]
[1642276585208,5.66446313,3345.4,3345.3,0.00284212]
[1642276585504,5.66446313,3345.4,3345.2,0.00341055]
[1642276586448,2.55646313,3345.3,3345.2,0.00341055]
[1642276586849,3.33346313,3345.3,3345.2,0.00341055]
[1642276588855,3.33346313,3345.3,3345.2,1.12329398]
[1642276590103,4.11046313,3345.3,3345.2,1.12329398]
[1642276593206,4.88746313,3345.3,3345.2,1.12329398]
[1642276596356,5.66446313,3345.3,3345.2,1.12329398]
[1642276599603,6.44146313,3345.3,3345.2,1.12329398]
[1642276602951,7.21846313,3345.3,3345.2,1.12329398]
[1642276606111,7.99546313,3345.3,3345.2,1.12329398]
[1642276609355,8.77246313,3345.3,3345.2,1.12329398]
[1642276610558,8.77246313,3345.3,3345.2,2.8952389]
[1642276611056,8.77246313,3345.3,3345.2,14.0588389]
[1642276611259,8.77246313,3345.3,3345.2,14.0596389]
[1642276611455,8.77246313,3345.3,3345.2,14.0604389]
[1642276611858,8.77246313,3345.3,3345.2,14.0620389]
[1642276612055,8.77246313,3345.3,3345.2,14.0644389]
[1642276612507,9.54946313,3345.3,3345.2,14.0636389]
[1642276612710,9.54946313,3345.3,3345.2,14.0628389]
[1642276612909,9.54946313,3345.3,3345.2,14.0644389]
[1642276613207,9.54946313,3345.3,3345.2,14.0636389]
[1642276613407,9.54946313,3345.3,3345.2,14.0628389]
[1642276613813,9.54946313,3345.3,3345.2,14.0620389]
[1642276614010,3.57399313,3345.3,3345.2,14.0652389]
[1642276614213,3.57399313,3345.3,3345.2,15.3543389]
[1642276614411,0.70740313,3345.4,3345.3,16.7]
[1642276614609,0.70740313,3345.4,3345.3,17.129]
[1642276614811,0.777,3345.8,3345.5,0.74683]
[1642276615012,0.8965,3345.9,3345.7,8.5]
[1642276615213,0.8965,3345.9,3345.8,9.62709658]
[1642276615412,0.8965,3345.9,3345.8,10.97300004]
[1642276615612,1.6735,3345.9,3345.8,4.77300004]
[1642276615814,1.6735,3345.9,3345.8,4.77380004]
[1642276616253,1.6735,3345.9,3345.8,4.77140004]
[1642276616654,0.777,3346.1,3345.8,9.02380004]
[1642276616855,0.777,3346.1,3345.9,1.84220072]
[1642276617254,0.777,3346.1,3345.9,3.33585072]
[1642276617456,0.777,3346.1,3345.9,14.33162592]
[1642276617754,0.777,3346.1,3346.0,11.1195]
[1642276617956,3.06079058,3346.5,3346.0,0.6701]
[1642276618156,0.00170527,3346.1,3346.0,0.6637]
[1642276618355,0.00170527,3346.1,3346.0,0.6629]
[1642276618560,0.00170527,3346.1,3346.0,2.04215]
[1642276619062,0.77870527,3346.1,3346.0,2.04215]
[1642276619457,0.77870527,3346.1,3346.0,1.92265]
[1642276620703,0.77870527,3346.1,3346.0,3.12475487]
[1642276621203,0.77870527,3346.1,3346.0,3.01275487]
[1642276621405,0.77870527,3346.1,3346.0,3.12475487]
[1642276621609,0.77870527,3346.1,3345.9,0.755913]
[1642276621805,0.77870527,3346.1,3345.9,0.74682]
[1642276622105,0.00113684,3346.0,3345.9,0.74682]
[1642276624958,0.00113684,3346.0,3345.7,0.009093]
[1642276625459,0.02125605,3345.9,3345.7,0.009093]
[1642276625659,0.02125605,3345.9,3345.6,0.01022985]
[1642276626061,0.77813684,3346.0,3345.6,0.01022985]
[1642276626260,0.77813684,3346.0,3345.6,0.12972985]
[1642276626666,0.77813684,3346.0,3345.6,0.12535449]
[1642276626861,0.00170527,3345.9,3345.6,0.1195]
[1642276627060,0.00170527,3345.9,3345.5,2.164193]
[1642276627302,0.00113685,3345.8,3345.5,2.163393]
[1642276627702,0.00170527,3345.9,3345.5,2.164193]
[1642276628102,0.00113685,3345.8,3345.5,1.737593]
[1642276628302,0.00113685,3345.8,3345.5,1.736793]
[1642276628504,0.777,3345.8,3345.5,1.737593]
[1642276628705,0.777,3345.8,3345.7,5.361204]
[1642276629106,0.77813685,3345.8,3345.7,5.479604]
[1642276629807,0.77813685,3345.8,3345.7,6.91965499]
[1642276630206,0.77813685,3345.8,3345.7,6.92045499]
[1642276630406,0.77813685,3345.8,3345.7,6.92125499]
[1642276630611,0.77813685,3345.8,3345.7,6.91965499]
[1642276630809,0.77813685,3345.8,3345.7,6.91885499]
[1642276631058,0.77813685,3345.8,3345.7,6.91565499]
[1642276631259,0.77813685,3345.8,3345.7,6.91645499]
[1642276631460,0.77813685,3345.8,3345.7,6.91725499]
[1642276631662,1.55513685,3345.8,3345.7,6.91805499]
[1642276631862,1.55513685,3345.8,3345.7,6.91885499]
[1642276632066,1.55513685,3345.8,3345.7,6.91965499]
[1642276632266,1.55513685,3345.8,3345.7,6.91885499]
[1642276632462,1.55513685,3345.8,3345.7,6.91805499]
[1642276632664,0.777,3346.0,3345.8,4.5]
[1642276632963,0.777,3346.0,3345.9,7.157261]
[1642276633163,0.777,3346.0,3345.9,7.278061]
[1642276633362,0.77813684,3346.0,3345.9,7.278861]
[1642276633563,0.77813684,3346.0,3345.9,7.278061]
[1642276633766,1.554,3346.1,3346.0,14.35]
[1642276633967,7.66893879,3346.3,3346.1,9.5]
[1642276634166,7.66893879,3346.3,3346.2,11.812157]
[1642276634466,1.69560879,3346.3,3346.2,11.948957]
[1642276634721,1.69560879,3346.3,3346.2,11.951357]
[1642276634905,16.43340518,3346.4,3346.3,10.96336575]
[1642276635105,16.43340518,3346.4,3346.3,7.29236575]
[1642276635304,11.6572737,3346.4,3346.3,7.42036575]
[1642276635505,10.38022267,3346.4,3346.3,8.91193142]
[1642276635705,10.38022267,3346.4,3346.3,8.91113142]
[1642276635904,4.40684267,3346.4,3346.3,8.91353142]
[1642276636105,4.40684267,3346.4,3346.3,8.91673142]
[1642276636305,4.40684267,3346.4,3346.3,8.92233142]
[1642276636505,1.49458325,3346.5,3346.4,7.35]
[1642276636706,1.49458325,3346.5,3346.4,7.799024]
[1642276636904,1.49458325,3346.5,3346.4,7.924624]
[1642276637107,1.49458325,3346.5,3346.4,7.925424]
[1642276637311,1.49458325,3346.5,3346.4,7.924624]
[1642276637705,1.49458325,3346.5,3346.4,7.925424]
[1642276638006,2.27158325,3346.5,3346.4,7.928624]
[1642276638205,2.27158325,3346.5,3346.4,7.927824]
[1642276638464,5.49948823,3347.0,3346.7,0.74656]
[1642276638465,3.49584838,3347.0,3346.7,0.74656]
[1642276638662,3.49584838,3347.0,3346.8,2.14728394]
[1642276638663,3.30825145,3347.0,3346.8,2.14728394]
[1642276638860,8.08267915,3347.2,3347.0,9.9]
[1642276639059,8.08267915,3347.2,3347.1,10.262157]
[1642276639060,7.89287484,3347.2,3347.1,10.262157]
[1642276639261,7.89287484,3347.2,3347.1,10.394157]
[1642276639461,1.92160484,3347.2,3347.1,11.82829311]
[1642276639663,1.92160484,3347.2,3347.1,11.82909311]
[1642276639867,0.61233484,3347.4,3347.2,4.95]
[1642276640062,0.61233484,3347.4,3347.3,6.528433]
[1642276640262,0.61233484,3347.4,3347.3,7.079833]
[1642276640464,0.1194,3347.8,3347.3,7.080633]
[1642276640665,0.1194,3347.8,3347.3,7.084633]
[1642276640862,0.1194,3347.8,3347.4,5.9208]
[1642276641064,0.1194,3347.8,3347.5,16.75]
[1642276641265,0.1194,3347.8,3347.7,12.833157]
[1642276641465,0.1194,3347.8,3347.7,14.239157]
[1642276641675,3.44605098,3348.8,3347.8,9.0]
[1642276641864,2.1194,3348.7,3347.9,10.162157]
[1642276642063,2.1194,3348.7,3347.9,10.294957]
[1642276642308,2.1194,3348.7,3348.0,4.2]
[1642276642613,2.1194,3348.7,3348.0,5.71579799]
[1642276642811,2.1194,3348.7,3348.0,1.51099799]
[1642276643006,2.1194,3348.7,3348.0,1.50859799]
[1642276643208,2.1194,3348.7,3348.0,2.24927799]
[1642276643209,2.55524649,3348.1,3348.0,2.24927799]
[1642276643410,2.55524649,3348.1,3348.0,2.25407799]
[1642276643607,2.55524649,3348.1,3348.0,2.25727799]
[1642276643808,2.55524649,3348.6,3348.0,2.24927799]
[1642276644008,2.55524649,3348.6,3348.2,0.00985]
[1642276644207,2.55865703,3348.6,3348.2,0.00985]
[1642276644410,0.78041054,3348.6,3348.2,0.00985]
[1642276645510,0.78041054,3348.6,3348.4,0.010103]
[1642276645707,0.78041054,3348.6,3348.5,1.17216038]
[1642276646155,0.78041054,3348.6,3348.5,1.18150538]
[1642276646554,0.78041054,3348.6,3348.5,1.17216038]
[1642276647659,1.55741054,3348.6,3348.5,1.17216038]
[1642276649555,1.55741054,3348.6,3348.5,1.18228738]
[1642276650208,1.55741054,3348.6,3348.5,1.17216038]
[1642276651002,2.33441054,3348.6,3348.5,1.17216038]
[1642276654261,3.11141054,3348.6,3348.5,1.17216038]
[1642276657404,3.88841054,3348.6,3348.5,1.17216038]
[1642276660606,4.66541054,3348.6,3348.5,1.17216038]
[1642276663457,4.66541054,3348.6,3348.5,1.18559663]
[1642276663957,5.44241054,3348.6,3348.5,1.18559663]
[1642276664805,3.81641054,3348.6,3348.5,1.18559663]
[1642276667306,4.59341054,3348.6,3348.5,1.18559663]
[1642276668564,4.45694394,3348.6,3348.5,1.18559663]
[1642276670361,5.23394394,3348.6,3348.5,1.18559663]
[1642276673608,6.01094394,3348.6,3348.5,1.18559663]
[1642276676260,7.96769807,3348.6,3348.5,1.18559663]
[1642276676456,6.01094394,3348.6,3348.5,1.18559663]
[1642276676856,6.78794394,3348.6,3348.5,1.18559663]
[1642276679158,8.70796294,3348.6,3348.5,1.18559663]
[1642276679558,6.78794394,3348.6,3348.5,1.18559663]
[1642276680002,7.56494394,3348.6,3348.5,1.18559663]
[1642276683455,8.34194394,3348.6,3348.5,1.18559663]
[1642276684157,8.46134394,3348.6,3348.5,1.18559663]
[1642276686058,8.34194394,3348.6,3348.5,1.18559663]
[1642276686659,9.11894394,3348.6,3348.5,1.18559663]
[1642276688105,12.11894394,3348.6,3348.5,1.18559663]
[1642276689908,12.89594394,3348.6,3348.5,1.18559663]
[1642276690316,12.89594394,3348.6,3348.5,4.08545326]
[1642276690509,12.89594394,3348.6,3348.5,4.20545326]
[1642276690709,6.92665394,3348.6,3348.5,16.16585326]
[1642276691158,6.29423111,3348.6,3348.5,16.16665326]
[1642276691666,0.32493111,3348.6,3348.5,16.17065326]
[1642276691860,0.32493111,3348.6,3348.5,16.16745326]
[1642276692260,0.32493111,3348.6,3348.5,16.59885326]
[1642276692465,0.32493111,3348.6,3348.5,16.59725326]
[1642276692662,2.87933691,3348.6,3348.5,16.59565326]
[1642276692863,2.87933691,3348.6,3348.5,16.59405326]
[1642276693066,2.87933691,3348.6,3348.5,9.88845326]
[1642276693266,3.65633691,3348.6,3348.5,9.88765326]
[1642276693464,3.65633691,3348.6,3348.5,9.88685326]
[1642276693864,3.65633691,3348.6,3348.5,9.88605326]
[1642276694269,3.65633691,3348.6,3348.5,9.88685326]
[1642276694464,3.65633691,3348.6,3348.5,9.88525326]
[1642276694717,3.65633691,3348.6,3348.5,9.88605326]
[1642276694907,3.65633691,3348.6,3348.5,9.89905026]
[1642276695110,3.65633691,3348.6,3348.5,9.89985026]
[1642276695310,3.65633691,3348.6,3348.5,9.90065026]
[1642276695507,3.65633691,3348.6,3348.5,9.89825026]
[1642276695908,3.65633691,3348.6,3348.5,4.64905026]
[1642276696108,3.65633691,3348.6,3348.5,4.48122998]
[1642276696308,4.38333691,3348.6,3348.5,9.83122998]
[1642276696510,4.38333691,3348.6,3348.5,9.83042998]
[1642276696711,4.38333691,3348.6,3348.5,9.83282998]
[1642276696915,4.38333691,3348.6,3348.5,9.83602998]
[1642276697110,4.38333691,3348.6,3348.5,9.83522998]
[1642276697314,4.38333691,3348.6,3348.5,9.83442998]
[1642276697912,4.38333691,3348.6,3348.5,16.83842998]
[1642276698110,4.38333691,3348.6,3348.5,16.84242998]
[1642276698310,4.38333691,3348.6,3348.5,9.84322998]
[1642276698569,4.38333691,3348.6,3348.5,9.83842998]
[1642276698765,1.82893111,3348.6,3348.5,9.83682998]
[1642276698966,1.82893111,3348.6,3348.5,8.03850063]
[1642276699165,1.82893111,3348.6,3348.5,8.03610063]
[1642276699367,1.82893111,3348.6,3348.5,8.03770063]
[1642276699571,5.16038479,3348.6,3348.5,8.03690063]
[1642276699768,5.16038479,3348.6,3348.5,7.91830063]
[1642276699967,5.16038479,3348.6,3348.5,9.71973093]
[1642276700570,5.16038479,3348.6,3348.5,9.72213093]
[1642276700768,5.16038479,3348.6,3348.5,9.72293093]
[1642276700969,5.16038479,3348.6,3348.5,15.67070063]
[1642276701270,0.78085155,3348.6,3348.5,15.67630063]
[1642276701470,0.777,3348.9,3348.7,0.0383333]
[1642276701670,0.777,3348.9,3348.8,16.798663]
[1642276701869,0.777,3348.9,3348.8,16.918063]
[1642276702217,0.777,3348.9,3348.8,16.924263]
[1642276702404,0.777,3348.9,3348.8,16.921063]
[1642276702602,0.777,3348.9,3348.8,16.917863]
[1642276702804,1.554,3348.9,3348.8,18.94879883]
[1642276703008,1.554,3348.9,3348.8,7.55119883]
[1642276703203,1.554,3348.9,3348.8,7.55039883]
[1642276703603,1.554,3348.9,3348.8,7.54959883]
[1642276704005,1.554,3348.9,3348.8,7.55039883]
[1642276704207,1.554,3348.9,3348.8,9.40793059]
[1642276704608,1.554,3348.9,3348.8,7.42959883]
[1642276704813,1.554,3348.9,3348.8,7.54639883]
[1642276705009,1.554,3348.9,3348.8,7.54719883]
[1642276705211,1.554,3348.9,3348.8,7.54879883]
[1642276705711,1.554,3348.9,3348.8,9.42740715]
[1642276705960,2.331,3348.9,3348.8,9.53798815]
[1642276706159,2.331,3348.9,3348.8,9.41778815]
[1642276706358,2.331,3348.9,3348.8,9.41698815]
[1642276707159,2.331,3348.9,3348.8,7.53757983]
[1642276707365,2.331,3348.9,3348.8,7.53837983]
[1642276707560,2.331,3348.9,3348.8,9.41286419]
[1642276708061,2.331,3348.9,3348.8,9.41046419]
[1642276708263,2.331,3348.9,3348.8,9.41126419]
[1642276708463,2.331,3348.9,3348.8,9.41446419]
[1642276708663,2.331,3348.9,3348.8,9.41366419]
[1642276708865,2.331,3348.9,3348.8,9.41526419]
[1642276709064,3.108,3348.9,3348.8,9.41446419]
[1642276709266,3.108,3348.9,3348.8,9.41606419]
[1642276709465,3.108,3348.9,3348.8,9.41526419]
[1642276709718,3.108,3348.9,3348.8,9.41206419]
[1642276709917,3.108,3348.9,3348.8,7.53917983]
[1642276710112,3.108,3348.9,3348.8,9.45094736]
[1642276710413,3.108,3348.9,3348.8,9.45014736]
[1642276710608,3.108,3348.9,3348.8,7.53677983]
[1642276710807,3.108,3348.9,3348.8,7.53597983]
[1642276711008,3.108,3348.9,3348.8,7.53517983]
[1642276711208,3.108,3348.9,3348.8,7.53437983]
[1642276711411,3.108,3348.9,3348.8,2.58437983]
[1642276711609,3.108,3348.9,3348.8,2.46917983]
[1642276712110,3.108,3348.9,3348.8,1.28482583]
[1642276712314,3.885,3348.9,3348.8,1.28482583]
[1642276713563,3.885,3348.9,3348.5,1.19859363]
[1642276713756,0.01988426,3348.8,3348.5,1.19859363]
[1642276713957,0.00113685,3348.8,3348.5,1.19482663]
[1642276715258,0.00113685,3348.8,3348.6,0.00969]
[1642276715556,0.77813685,3348.8,3348.6,0.00969]
[1642276715759,0.77813685,3348.8,3348.6,0.019264]
[1642276717061,0.1194,3348.7,3348.5,1.18559663]
[1642276718604,0.8964,3348.7,3348.5,1.18559663]
[1642276718807,0.8964,3348.7,3348.5,1.19495563]
[1642276719306,0.777,3348.7,3348.5,1.19495563]
[1642276721754,1.554,3348.7,3348.5,1.19495563]
[1642276723358,1.43450753,3348.7,3348.5,1.19495563]
[1642276725009,2.21150753,3348.7,3348.5,1.19495563]
[1642276726208,2.21150753,3348.7,3348.6,0.112]
[1642276726409,2.21150753,3348.7,3348.6,0.121995]
[1642276726809,2.21150753,3348.7,3348.6,0.009195]
[1642276727109,2.21150753,3348.7,3348.6,0.868225]
[1642276727309,2.21150753,3348.7,3348.6,0.869825]
[1642276727510,2.21150753,3348.7,3348.6,0.869025]
[1642276727710,2.21150753,3348.7,3348.6,5.269025]
[1642276727916,2.21150753,3348.7,3348.6,5.271425]
[1642276728110,2.21150753,3348.7,3348.6,5.269025]
[1642276728310,2.98850753,3348.7,3348.6,5.269025]
[1642276728561,2.98850753,3348.7,3348.6,0.869025]
[1642276728760,2.98850753,3348.7,3348.6,0.874825]
[1642276728961,2.98850753,3348.7,3348.6,0.987625]
[1642276729160,2.98850753,3348.7,3348.6,0.986825]
[1642276729459,2.98850753,3348.7,3348.6,0.874825]
[1642276730361,2.98850753,3348.7,3348.6,0.986825]
[1642276730567,2.98850753,3348.7,3348.6,9.245625]
[1642276730963,2.98850753,3348.7,3348.6,9.556025]
[1642276731160,2.98850753,3348.7,3348.6,9.554425]
[1642276731361,2.98850753,3348.7,3348.6,9.553625]
[1642276731565,3.76550753,3348.7,3348.6,9.553625]
[1642276731764,3.76550753,3348.7,3348.6,9.552825]
[1642276731962,3.76550753,3348.7,3348.6,9.551225]
[1642276732218,3.76550753,3348.7,3348.6,9.553625]
[1642276732408,3.76550753,3348.7,3348.6,9.552825]
[1642276733009,3.76550753,3348.7,3348.6,1.301225]
[1642276733408,3.76550753,3348.7,3348.6,1.302025]
[1642276733607,3.76550753,3348.7,3348.6,8.011864]
[1642276733808,3.76550753,3348.7,3348.6,8.012664]
[1642276734008,3.76550753,3348.7,3348.6,8.011864]
[1642276734407,3.76550753,3348.7,3348.6,8.131264]
[1642276734809,4.54250753,3348.7,3348.6,1.428864]
[1642276735309,4.54250753,3348.7,3348.6,1.433664]
[1642276735613,4.54250753,3348.7,3348.6,6.232064]
[1642276735814,4.54250753,3348.7,3348.6,5.475195]
[1642276736057,4.54250753,3348.7,3348.6,5.472795]
[1642276736259,4.54250753,3348.7,3348.6,5.471995]
[1642276736462,4.54250753,3348.7,3348.6,0.557595]
[1642276736660,7.09660819,3348.7,3348.6,0.557595]
[1642276737260,7.09660819,3348.7,3348.6,0.128595]
[1642276737665,7.09660819,3348.7,3348.6,0.009195]
[1642276737860,7.87360819,3348.7,3348.6,0.009195]
[1642276738560,7.87360819,3348.7,3348.6,4.309195]
[1642276738761,7.87360819,3348.7,3348.6,4.438204]
[1642276739460,7.87360819,3348.7,3348.6,4.428595]
[1642276739724,7.87360819,3348.7,3348.6,4.438205]
[1642276740114,7.87360819,3348.7,3348.6,0.138205]
[1642276740315,7.87360819,3348.7,3348.6,0.1194]
[1642276741115,8.65060819,3348.7,3348.6,0.1194]
[1642276742216,8.65060819,3348.7,3348.5,2.65656963]
[1642276742418,8.65060819,3348.7,3348.5,2.64747663]
[1642276742618,8.65060819,3348.7,3348.5,2.65694263]
[1642276743019,2.55410066,3348.6,3348.5,2.65694263]
[1642276743218,2.55410066,3348.6,3348.5,2.64747663]
[1642276744357,3.33110066,3348.6,3348.5,2.65681863]
[1642276744557,3.33110066,3348.6,3348.5,7.20681863]
[1642276744756,3.33110066,3348.6,3348.5,7.21658163]
[1642276744959,3.33110066,3348.6,3348.5,2.66658163]
[1642276745359,3.33110066,3348.6,3348.5,2.64747663]
[1642276745760,3.33110066,3348.6,3348.5,2.66784863]
[1642276745963,3.33110066,3348.6,3348.5,2.78544863]
[1642276746158,3.33110066,3348.6,3348.5,2.78864863]
[1642276746358,3.33110066,3348.6,3348.5,3.22484863]
[1642276746558,0.777,3348.6,3348.5,11.62484863]
[1642276746758,0.777,3348.6,3348.5,11.55255488]
[1642276746957,0.777,3348.6,3348.5,11.54935488]
[1642276747218,0.777,3348.6,3348.5,11.42215488]
[1642276747409,0.777,3348.6,3348.5,11.55415488]
[1642276747609,1.554,3348.6,3348.5,11.55255488]
[1642276747808,1.554,3348.6,3348.5,11.55015488]
[1642276748412,6.09650753,3348.7,3348.6,7.65]
[1642276748718,6.09650753,3348.7,3348.6,8.231557]
[1642276748910,6.09650753,3348.7,3348.6,8.362757]
[1642276749314,6.09650753,3348.7,3348.6,8.357957]
[1642276749712,6.09650753,3348.7,3348.6,8.239357]
[1642276750414,0.12746753,3348.7,3348.6,12.037757]
[1642276750616,0.12746753,3348.7,3348.6,12.042557]
[1642276750813,0.90446753,3348.7,3348.6,12.044157]
[1642276751059,0.90446753,3348.7,3348.6,8.243357]
[1642276751267,0.777,3348.8,3348.7,11.1]
[1642276751460,0.777,3348.8,3348.7,8.2388471]
[1642276751659,0.777,3348.8,3348.7,8.3644471]
[1642276752160,0.777,3348.8,3348.7,8.3628471]
[1642276752564,0.777,3348.8,3348.7,8.3644471]
[1642276752961,0.777,3348.8,3348.7,8.3652471]
[1642276753165,0.777,3348.8,3348.7,8.3684471]
[1642276753362,3.885,3348.9,3348.8,9.79613]
[1642276753562,0.78085155,3348.9,3348.8,16.566307]
[1642276753770,2.72786156,3349.8,3348.8,16.704707]
[1642276753964,0.777,3348.9,3348.8,10.503107]
[1642276754162,0.777,3348.9,3348.8,10.246907]
[1642276754362,0.00397897,3349.6,3348.9,9.9]
[1642276754565,0.00397897,3349.6,3349.4,1.28738966]
[1642276754811,0.1194,3349.7,3349.5,1.14329877]